bitfinex/quotes_SOLUSD_20250424
["timestamp","ask_amount","ask_price","bid_price","bid_amount"]
[1745465777664,15.7507,148.43,148.39,13.9708996]
[1745465777875,20.83718251,148.43,148.42,13.9708996]
[1745465778293,20.83582109,148.46,148.42,13.9708996]
[1745465778470,20.83582109,148.46,148.44,13.9708996]
[1745465778982,20.83582109,148.46,148.45,13.9708996]
[1745465779295,6.73446023,148.49,148.45,13.9708996]
[1745465779480,6.73446023,148.49,148.48,13.9708996]
[1745465779893,6.73446023,148.49,148.47,13.9708996]
[1745465780705,20.83413043,148.5,148.48,13.9708996]
[1745465780879,14.1,148.5,148.49,13.9708996]
[1745465781071,6.73356474,148.51,148.49,13.9708996]
[1745465781389,6.7326466,148.53,148.5,13.9708996]
[1745465781585,6.7326466,148.53,148.5,10.62109809]
[1745465781889,6.7326466,148.53,148.51,18.97773001]
[1745465782077,6.7326466,148.53,148.51,5.00683041]
[1745465782277,6.7326466,148.53,148.51,18.97773001]
[1745465782686,6.7326466,148.53,148.47,22.05273767]
[1745465782885,6.7326466,148.53,148.51,13.9708996]
[1745465783899,6.7326466,148.53,148.45,32.73620393]
[1745465784080,6.7326466,148.53,148.5,13.9708996]
[1745465784391,6.7326466,148.53,148.5,8.922918]
[1745465784689,6.7326466,148.53,148.51,13.9708996]
[1745465785087,6.7326466,148.53,148.5,13.9708996]
[1745465785269,13.9708996,148.51,148.4,6.4282]
[1745465785470,23.5642631,148.53,148.45,7.24037862]
[1745465785471,13.9708996,148.49,148.45,7.24037862]
[1745465785671,13.9708996,148.48,148.4,20.3990996]
[1745465785883,13.9708996,148.48,148.44,13.9708996]
[1745465786172,28.0708996,148.49,148.44,13.9708996]
[1745465786390,13.9708996,148.48,148.43,13.9708996]
[1745465786893,13.9708996,148.46,148.38,1e-08]
[1745465787106,13.9708996,148.46,148.41,13.9708996]
[1745465787404,22.36181253,148.46,148.41,22.36181253]
[1745465787609,22.36181253,148.45,148.4,22.36181253]
[1745465787902,22.36181253,148.45,148.41,5.0045859]
[1745465788079,36.46181253,148.44,148.41,5.0045859]
[1745465788281,14.1,148.44,148.41,5.0045859]
[1745465788501,14.1,148.44,148.42,22.36181253]
[1745465788803,6.73718251,148.43,148.41,22.36181253]
[1745465789192,6.73718251,148.43,148.42,22.36181253]
[1745465789375,20.83687578,148.44,148.42,22.36181253]
[1745465790201,20.83687578,148.44,148.43,22.36181253]
[1745465790506,20.83687578,148.44,148.42,22.36181253]
[1745465791107,6.73687578,148.44,148.41,22.36181253]
[1745465791710,29.09868831,148.44,148.4,22.36181253]
[1745465792384,22.36181253,148.43,148.39,22.36181253]
[1745465792981,23.58172752,148.42,148.38,1e-08]
[1745465793181,45.94354005,148.42,148.38,1e-08]
[1745465793601,14.1,148.41,148.38,22.36181254]
[1745465793807,14.1,148.41,148.38,1e-08]
[1745465794005,14.1,148.41,148.38,22.36181254]
[1745465795009,6.73854447,148.4,148.38,22.36181254]
[1745465795687,6.73854447,148.4,148.38,1e-08]
[1745465799108,6.73854447,148.4,148.39,22.36181253]
[1745465800695,14.1,148.41,148.39,22.36181253]
[1745465800696,20.83812388,148.41,148.39,22.36181253]
[1745465800892,6.73812388,148.41,148.4,22.36181253]
[1745465801286,6.73672864,148.44,148.4,22.36181253]
[1745465801488,6.73672864,148.44,148.41,22.36181253]
[1745465802411,23.57855025,148.44,148.4,22.36181253]
[1745465802708,23.57855025,148.44,148.38,1e-08]
[1745465802906,45.94036278,148.44,148.38,1e-08]
[1745465803299,47.78151485,148.45,148.38,22.36181254]
[1745465803300,6.73809042,148.41,148.38,22.36181254]
[1745465803987,6.73809042,148.41,148.4,22.36181253]
[1745465804190,6.73809042,148.41,148.39,22.36181253]
[1745465804390,6.73809042,148.41,148.38,22.36181254]
[1745465804602,6.73809042,148.41,148.38,1e-08]
[1745465804803,6.73809042,148.41,148.38,22.36181254]
[1745465804999,23.58331648,148.41,148.38,22.36181254]
[1745465807297,16.84522606,148.41,148.38,13.98153802]
[1745465807503,16.84522606,148.41,148.38,1e-08]
[1745465807814,13.98153801,148.39,148.38,1e-08]
[1745465808214,21.822,148.4,148.38,1e-08]
[1745465809019,14.12,148.4,148.38,13.98153802]
[1745465809204,14.12,148.4,148.39,13.98153801]
[1745465809404,6.73899858,148.39,148.38,13.98153802]
[1745465809609,6.73899858,148.39,148.38,1e-08]
[1745465810617,6.73899858,148.39,148.38,13.98153802]
[1745465811421,6.73899858,148.39,148.38,1e-08]
[1745465818113,6.73763643,148.42,148.38,13.98153802]
[1745465818316,6.73763643,148.42,148.41,13.98153801]
[1745465818925,6.73763643,148.42,148.38,1e-08]
[1745465819128,6.73763643,148.42,148.4,13.98153801]
[1745465819432,16.84296062,148.43,148.39,13.98153801]
[1745465819800,16.84296062,148.43,148.4,13.98153801]
[1745465820451,16.84296062,148.43,148.41,13.98153801]
[1745465820937,6.73672864,148.44,148.42,13.98153801]
[1745465821145,6.73672864,148.44,148.43,13.98153801]
[1745465821305,6.73491379,148.48,148.43,13.98153801]
[1745465821509,6.73491379,148.48,148.45,13.98153801]
[1745465821729,6.73491379,148.48,148.46,13.98153801]
[1745465821930,6.73491379,148.48,148.47,13.98153801]
[1745465822437,20.85461278,148.49,148.47,13.98153801]
[1745465822737,6.73355329,148.51,148.48,13.98153801]
[1745465823234,6.73355329,148.51,148.49,13.98153801]
[1745465823413,23.59689789,148.52,148.49,13.98153801]
[1745465823938,6.76309991,148.52,148.51,13.98153801]
[1745465824539,6.76309991,148.52,148.5,13.98153801]
[1745465824947,6.76309991,148.52,148.51,13.98153801]
[1745465825621,6.76309991,148.52,148.46,1.34662212]
[1745465825824,6.76309991,148.52,148.5,13.98153801]
[1745465827629,6.76309991,148.52,148.49,13.98153801]
[1745465828029,6.76309991,148.52,148.44,32.73671093]
[1745465828262,6.76309991,148.52,148.49,13.98153801]
[1745465828550,6.76309991,148.52,148.5,13.98153801]
[1745465829930,6.76309991,148.52,148.49,13.98153801]
[1745465831033,6.76309991,148.52,148.5,13.98153801]
[1745465833153,6.76309991,148.52,148.49,13.98153801]
[1745465833347,37.57738771,148.52,148.41,8.08472541]
[1745465833556,13.98153801,148.51,148.47,13.98153801]
[1745465833949,37.57738771,148.52,148.47,13.98153801]
[1745465834151,37.57738771,148.52,148.48,13.98153801]
[1745465834757,23.5958497,148.52,148.49,13.98153801]
[1745465834956,6.76309991,148.52,148.51,13.98153801]
[1745465836045,6.76309991,148.52,148.47,13.98153801]
[1745465836358,6.76309991,148.52,148.51,13.98153801]
[1745465838332,0.03,148.52,148.51,13.98153801]
[1745465844956,0.03,148.52,148.48,1.48846295]
[1745465845151,0.03,148.52,148.51,13.98153801]
[1745465848346,0.03,148.52,148.51,20.7150913]
[1745465848545,0.03,148.52,148.51,22.06130548]
[1745465849486,0.03,148.52,148.49,1.34622313]
[1745465849649,0.03,148.52,148.51,13.98153801]
[1745465852655,0.03,148.52,148.51,20.7150913]
[1745465853487,0.03,148.52,148.51,13.98153801]
[1745465856180,1.611,148.52,148.49,13.98153801]
[1745465856384,0.03,148.52,148.51,13.98153801]
[1745465858985,0.03,148.52,148.5,13.98153801]
[1745465859185,0.03,148.52,148.51,13.98153801]
[1745465861693,0.03,148.52,148.51,20.7150913]
[1745465861895,0.03,148.52,148.51,13.98153801]
[1745465863699,0.03,148.52,148.46,1.34633606]
[1745465863876,14.01153801,148.52,148.47,13.98153801]
[1745465864384,0.03,148.52,148.5,13.98153801]
[1745465865197,0.03,148.52,148.51,13.98153801]
[1745465866012,6.76309991,148.52,148.51,13.98153801]
[1745465866306,0.03,148.52,148.51,13.98153801]
[1745465873334,0.03,148.52,148.5,13.98153801]
[1745465873526,0.03,148.52,148.46,1.34633856]
[1745465873836,0.03,148.52,148.5,13.98153801]
[1745465874138,0.03,148.52,148.51,13.98153801]
[1745465884820,0.03,148.52,148.51,14.12369958]
[1745465885222,0.03,148.52,148.51,15.46981132]
[1745465886035,0.03,148.52,148.51,48.20336461]
[1745465886240,6.73094555,148.57,148.56,13.98153801]
[1745465886736,6.73094555,148.57,148.54,13.98153801]
[1745465887140,6.73094555,148.57,148.55,13.98153801]
[1745465887729,6.73094555,148.57,148.56,13.98153801]
[1745465888038,0.03,148.58,148.56,13.98153801]
[1745465888231,0.03,148.58,148.55,13.98153801]
[1745465888539,0.03,148.58,148.54,13.98153801]
[1745465890444,0.03,148.58,148.55,13.98153801]
[1745465892060,0.03,148.58,148.56,13.98153801]
[1745465892839,0.03,148.58,148.55,13.98153801]
[1745465894566,6.6505,148.55,148.45,0.063]
[1745465894755,13.98153801,148.52,148.47,13.98153801]
[1745465894934,13.98153801,148.53,148.47,13.98153801]
[1745465895135,13.98153801,148.53,148.48,13.98153801]
[1745465896245,6.73309991,148.52,148.48,13.98153801]
[1745465897741,6.73309991,148.52,148.49,13.98153801]
[1745465900054,23.56467382,148.53,148.49,13.98153801]
[1745465900426,13.98153801,148.52,148.45,0.20516157]
[1745465900745,13.98153801,148.52,148.47,13.98153801]
[1745465900951,1.5491,148.5,148.45,14.04453801]
[1745465902134,6.73446023,148.49,148.45,14.04453801]
[1745465902332,23.57061081,148.49,148.45,0.063]
[1745465902546,13.98153801,148.48,148.45,0.063]
[1745465902731,13.98153801,148.46,148.45,0.063]
[1745465902927,13.98153801,148.46,148.45,1e-08]
[1745465903158,15.53063801,148.46,148.45,1e-08]
[1745465903465,34.18028687,148.46,148.45,1e-08]
[1745465903745,34.18028687,148.46,148.42,0.063]
[1745465903946,13.98153801,148.43,148.42,0.063]
[1745465904125,40.91252052,148.43,148.42,1e-08]
[1745465904766,26.93098251,148.43,148.42,1e-08]
[1745465905061,40.91252052,148.43,148.42,1e-08]
[1745465905239,26.93098251,148.43,148.42,1e-08]
[1745465906357,40.91252052,148.43,148.42,1e-08]
[1745465907068,20.67718251,148.43,148.42,1e-08]
[1745465908059,6.73627484,148.45,148.42,13.98153802]
[1745465908429,6.73627484,148.45,148.42,1e-08]
[1745465908752,6.73627484,148.45,148.42,13.98153802]
[1745465908929,20.71781285,148.45,148.42,1e-08]
[1745465909133,13.98153801,148.44,148.42,1e-08]
[1745465909358,37.55849995,148.45,148.42,1e-08]
[1745465909655,23.57696194,148.45,148.42,1e-08]
[1745465910037,13.98153801,148.44,148.42,1e-08]
[1745465910240,13.98153801,148.43,148.42,1e-08]
[1745465910444,34.65872052,148.43,148.42,1e-08]
[1745465910755,20.67718251,148.43,148.42,1e-08]
[1745465911465,34.65872052,148.43,148.42,1e-08]
[1745465913163,20.67718251,148.43,148.42,1e-08]
[1745465913362,34.65872052,148.43,148.42,1e-08]
[1745465916174,20.67718251,148.43,148.42,1e-08]
[1745465920070,6.73718251,148.43,148.42,1e-08]
[1745465920275,6.73718251,148.43,148.42,13.98153802]
[1745465920672,6.73718251,148.43,148.42,1e-08]
[1745465921879,37.55849995,148.45,148.42,1e-08]
[1745465922380,13.98153801,148.43,148.42,1e-08]
[1745465923356,13.98153801,148.44,148.42,1e-08]
[1745465923863,6.73718251,148.43,148.42,1e-08]
[1745465930483,20.71872052,148.43,148.42,1e-08]
[1745465930860,39.36836938,148.43,148.42,1e-08]
[1745465931875,20.71872052,148.43,148.42,1e-08]
[1745465933071,13.98153801,148.41,148.39,0.063]
[1745465933969,20.72008248,148.4,148.39,0.063]
[1745465934287,22.24938248,148.4,148.38,1e-08]
[1745465934666,13.98153801,148.39,148.38,1e-08]
[1745465935471,32.63118687,148.39,148.38,1e-08]
[1745465935873,13.98153801,148.39,148.38,1e-08]
[1745465936384,20.72053659,148.39,148.38,1e-08]
[1745465936588,6.73899858,148.39,148.38,1e-08]
[1745465936798,6.73899858,148.39,148.38,13.98153802]
[1745465938485,23.5835723,148.41,148.38,13.98153802]
[1745465939086,23.5835723,148.41,148.39,13.98153801]
[1745465939395,23.5835723,148.41,148.38,13.98153802]
[1745465940388,6.73809042,148.41,148.39,13.98153801]
[1745465941477,7.73771918,148.42,148.4,13.98153801]
[1745465941788,7.73771918,148.42,148.41,13.98153801]
[1745465941789,0.99999999,148.42,148.41,13.98153801]
[1745465943684,0.99999999,148.42,148.41,20.86179]
[1745465943887,6.73503397,148.48,148.41,46.86179]
[1745465944089,6.73503397,148.48,148.43,0.14216157]
[1745465944282,6.73503397,148.48,148.46,13.98153801]
[1745465944475,6.73503397,148.48,148.47,13.98153801]
[1745465944873,6.76447808,148.49,148.47,13.98153801]
[1745465945074,0.03,148.49,148.48,13.98153801]
[1745465945997,0.03,148.49,148.44,8.08363482]
[1745465946298,0.03,148.49,148.48,13.98153801]
[1745465947392,0.03,148.49,148.45,6.29756157]
[1745465947393,0.03,148.49,148.47,13.98153801]
[1745465947898,0.03,148.49,148.46,13.98153801]
[1745465948398,15.62803801,148.49,148.44,13.98153801]
[1745465948597,1.6465,148.49,148.46,13.98153801]
[1745465949606,6.73491379,148.48,148.46,13.98153801]
[1745465950296,6.73491379,148.48,148.44,13.98153801]
[1745465950472,6.73491379,148.48,148.41,1.48914802]
[1745465950679,6.73491379,148.48,148.47,13.98153801]
[1745465951685,0.03,148.49,148.46,13.98153801]
[1745465952588,13.98153801,148.48,148.44,13.98153801]
[1745465952777,13.98153801,148.48,148.43,13.98153801]
[1745465952981,27.95153801,148.49,148.44,13.98153801]
[1745465953702,6.73491379,148.48,148.44,13.98153801]
[1745465954311,6.73491379,148.48,148.46,13.98153801]
[1745465954616,6.73491379,148.48,148.45,13.98153801]
[1745465956589,23.57219827,148.48,148.4,26.0]
[1745465956886,15.54273801,148.47,148.42,13.98153801]
[1745465957414,15.54273801,148.47,148.39,0.14216157]
[1745465957704,15.54273801,148.47,148.42,13.98153801]
[1745465957877,6.73582109,148.46,148.42,13.98153801]
[1745465958082,20.7173591,148.46,148.41,13.98153801]
[1745465959305,37.55691184,148.46,148.41,13.98153801]
[1745465960517,37.55691184,148.46,148.38,1.34706629]
[1745465960719,26.0,148.43,148.38,1e-08]
[1745465961020,13.98153801,148.39,148.38,1e-08]
[1745465961184,13.98153801,148.4,148.38,1e-08]
[1745465961606,13.98153801,148.39,148.38,1e-08]
[1745465962701,20.72053659,148.39,148.38,1e-08]
[1745465963296,18.64964886,148.38,148.33,0.063]
[1745465963499,13.98153801,148.34,148.33,0.063]
[1745465964706,20.72280806,148.34,148.33,0.063]
[1745465965120,6.74127005,148.34,148.33,0.063]
[1745465965999,6.74127005,148.34,148.33,14.04453801]
[1745465966194,16.8483443,148.39,148.33,28.02607602]
[1745465966195,6.74036128,148.36,148.33,28.02607602]
[1745465966418,16.8483443,148.39,148.35,13.98153801]
[1745465966598,23.58734288,148.39,148.36,13.98153801]
[1745465966798,23.58734288,148.39,148.33,0.063]
[1745465966799,6.73899858,148.39,148.37,13.98153801]
[1745465967311,6.73899858,148.39,148.36,13.98153801]
[1745465967917,6.73899858,148.39,148.33,1.41090052]
[1745465968215,13.98153801,148.38,148.34,13.98153801]
[1745465968415,13.98153801,148.37,148.33,14.04453801]
[1745465968723,20.72189929,148.36,148.33,0.063]
[1745465969016,37.49126448,148.36,148.33,0.063]
[1745465969320,51.47280249,148.36,148.33,0.063]
[1745465969828,33.9278,148.41,148.35,13.98153801]
[1745465969829,6.73945275,148.38,148.35,13.98153801]
[1745465970620,6.73945275,148.38,148.36,13.98153801]
[1745465970816,23.58730129,148.39,148.36,13.98153801]
[1745465971124,23.58730129,148.39,148.35,13.98153801]
[1745465972220,23.58730129,148.39,148.33,0.063]
[1745465972221,37.5688393,148.39,148.34,13.98153801]
[1745465972412,13.98153801,148.38,148.33,14.04453801]
[1745465972815,20.72189929,148.36,148.33,0.063]
[1745465973424,37.57280249,148.36,148.33,0.063]
[1745465973933,13.98153801,148.35,148.33,0.063]
[1745465974303,51.47280249,148.36,148.33,0.063]
[1745465974719,16.84850854,148.39,148.35,13.98153801]
[1745465975028,6.73945275,148.38,148.36,13.98153801]
[1745465976317,6.73945275,148.38,148.34,13.98153801]
[1745465976504,6.73945275,148.38,148.35,13.98153801]
[1745465977330,37.56962265,148.38,148.33,14.04453801]
[1745465978212,23.58808464,148.38,148.34,13.98153801]
[1745465979935,6.73945275,148.38,148.35,13.98153801]
[1745465981019,6.73945275,148.38,148.33,0.063]
[1745465981226,37.5681508,148.39,148.34,13.98153801]
[1745465982332,13.98153801,148.38,148.33,0.063]
[1745465982633,13.98153801,148.38,148.33,14.04453801]
[1745465983130,13.98153801,148.37,148.33,0.063]
[1745465983332,57.28160571,148.39,148.33,0.063]
[1745465983333,13.98153801,148.35,148.33,0.063]
[1745465983529,13.98153801,148.36,148.33,0.063]
[1745465983731,13.98153801,148.37,148.33,0.063]
[1745465983931,23.58661279,148.39,148.35,13.98153801]
[1745465984131,37.48661279,148.39,148.35,13.98153801]
[1745465984730,37.48661279,148.39,148.36,13.98153801]
[1745465984933,20.63899858,148.39,148.37,13.98153801]
[1745465985115,20.63899858,148.39,148.38,13.98153801]
[1745465985431,6.73854447,148.4,148.38,13.98153801]
[1745465986315,6.73854447,148.4,148.37,13.98153801]
[1745465987229,6.73854447,148.4,148.36,13.98153801]
[1745465987438,6.73854447,148.4,148.37,13.98153801]
[1745465988426,6.73854447,148.4,148.38,13.98153801]
[1745465990342,6.73854447,148.4,148.37,13.98153801]
[1745465990640,6.73854447,148.4,148.33,0.063]
[1745465990641,13.98153801,148.39,148.33,0.063]
[1745465990847,13.98153801,148.39,148.35,13.98153801]
[1745465991639,37.56644366,148.4,148.35,13.98153801]
[1745465992127,23.58490565,148.4,148.36,13.98153801]
[1745465992331,23.58490565,148.4,148.33,0.063]
[1745465992332,23.58490565,148.4,148.37,13.98153801]
[1745465992633,23.58490565,148.4,148.36,13.98153801]
[1745465995946,6.73854447,148.4,148.37,13.98153801]
[1745465996165,6.73763643,148.42,148.39,13.98153801]
[1745465996446,6.73672864,148.44,148.41,13.98153801]
[1745465996638,20.92644158,148.45,148.43,13.98153801]
[1745465996942,0.03,148.45,148.44,13.98153801]
[1745466000253,0.03,148.45,148.4,26.0]
[1745466000435,14.01153801,148.45,148.35,1.34734459]
[1745466000636,0.03,148.45,148.42,13.98153801]
[1745466001048,0.03,148.45,148.41,13.98153801]
[1745466001355,0.03,148.45,148.43,13.98153801]
[1745466001539,6.76627484,148.45,148.43,13.98153801]
[1745466001863,0.03,148.45,148.44,13.98153801]
[1745466003938,14.01153801,148.45,148.4,13.98153801]
[1745466004143,15.57353801,148.44,148.39,13.98153801]
[1745466004557,15.57353801,148.44,148.4,13.98153801]
[1745466004856,1.592,148.44,148.4,13.98153801]
[1745466005059,6.73718251,148.43,148.39,13.98153801]
[1745466005364,6.73718251,148.43,148.39,22.36628321]
[1745466005547,6.73718251,148.43,148.36,26.0]
[1745466005735,6.73718251,148.43,148.39,22.36628321]
[1745466006167,45.94642199,148.43,148.34,1.34755267]
[1745466006339,22.36628321,148.42,148.33,22.42928321]
[1745466006540,22.36628321,148.41,148.36,22.36628321]
[1745466006756,22.36628321,148.42,148.37,22.36628321]
[1745466007264,45.94642199,148.43,148.38,22.36628321]
[1745466007649,6.73718251,148.43,148.39,22.36628321]
[1745466008167,6.73718251,148.43,148.37,22.36628321]
[1745466008168,22.36628321,148.42,148.37,22.36628321]
[1745466008468,22.36628321,148.41,148.33,0.063]
[1745466008662,22.36628321,148.42,148.37,22.36628321]
[1745466008839,45.94642199,148.43,148.38,22.36628321]
[1745466009461,22.36628321,148.42,148.37,22.36628321]
[1745466010265,45.94959969,148.41,148.34,1.3477928]
[1745466010565,6.73718251,148.43,148.39,22.36628321]
[1745466010766,6.73718251,148.43,148.4,22.36628321]
[1745466011139,6.73718251,148.43,148.36,1.34755225]
[1745466011352,6.73718251,148.43,148.42,22.36628321]
[1745466011665,6.73718251,148.43,148.4,22.36628321]
[1745466011865,6.73718251,148.43,148.39,22.36628321]
[1745466012245,6.73672864,148.44,148.4,22.36628321]
[1745466012961,6.73672864,148.44,148.36,1.34755225]
[1745466012962,45.94483346,148.44,148.36,1.34755225]
[1745466013465,6.73672864,148.44,148.42,22.36628321]
[1745466013651,6.73672864,148.44,148.41,22.36628321]
[1745466013854,6.73672864,148.44,148.4,22.36628321]
[1745466014247,29.10301185,148.44,148.39,22.36628321]
[1745466014864,45.94483346,148.44,148.39,22.36628321]
[1745466015057,23.57855025,148.44,148.4,22.36628321]
[1745466015252,6.73672864,148.44,148.41,22.36628321]
[1745466015464,6.73672864,148.44,148.42,22.36628321]
[1745466015654,6.73672864,148.44,148.4,22.36628321]
[1745466016059,0.03,148.45,148.43,22.36628321]
[1745466016376,0.03,148.45,148.44,22.36628321]
[1745466016959,0.03,148.45,148.4,22.36628321]
[1745466017156,0.03,148.45,148.44,22.36628321]
[1745466018270,0.03,148.45,148.44,23.85531044]
[1745466018454,0.03,148.45,148.44,30.59203908]
[1745466019571,0.03,148.45,148.44,52.95832229]
[1745466019874,0.03,148.49,148.44,52.95832229]
[1745466020045,0.03,148.49,148.48,22.36628321]
[1745466020245,0.03,148.49,148.48,23.7128974]
[1745466020463,0.03,148.49,148.48,30.44781119]
[1745466021170,0.03,148.49,148.48,30.58997276]
[1745466022943,0.03,148.51,148.5,26.14216157]
[1745466023162,0.03,148.51,148.5,49.85470041]
[1745466024568,0.03,148.51,148.5,23.85470041]
[1745466024776,0.03,148.51,148.5,22.36628321]
[1745466024959,0.03,148.51,148.48,1.34634468]
[1745466025163,0.03,148.51,148.43,1.34639909]
[1745466025469,0.03,148.51,148.5,22.36628321]
[1745466027372,0.03,148.51,148.5,13.95375489]
[1745466029174,0.03,148.51,148.48,1.3464704]
[1745466029363,0.03,148.51,148.47,13.95375489]
[1745466030172,13.98375489,148.51,148.46,13.95375489]
[1745466030377,0.03,148.51,148.49,13.95375489]
[1745466030876,6.76355329,148.51,148.5,13.95375489]
[1745466031960,0.03,148.51,148.5,13.95375489]
[1745466034164,0.03,148.51,148.48,0.14216157]
[1745466034361,0.03,148.51,148.47,1.34665151]
[1745466034570,0.03,148.51,148.49,13.95375489]
[1745466035475,0.03,148.51,148.5,13.95375489]
[1745466037973,0.03,148.51,148.48,1.34653857]
[1745466038173,0.03,148.51,148.5,13.95375489]
[1745466038685,0.03,148.51,148.45,26.0]
[1745466038867,0.03,148.51,148.46,13.95375489]
[1745466038868,1.6157,148.5,148.46,13.95375489]
[1745466039465,1.6157,148.5,148.47,13.95375489]
[1745466039675,1.6157,148.5,148.49,13.95375489]
[1745466039873,1.6157,148.5,148.48,13.95375489]
[1745466040072,1.6157,148.5,148.46,13.95375489]
[1745466040780,6.73446023,148.49,148.48,13.95375489]
[1745466043500,6.73446023,148.49,148.47,13.95375489]
[1745466043873,6.73446023,148.49,148.48,13.95375489]
[1745466044879,6.73446023,148.49,148.47,13.95375489]
[1745466045483,8.34988684,148.5,148.48,13.95375489]
[1745466047003,8.34988684,148.5,148.49,13.95375489]
[1745466047296,8.34988684,148.5,148.48,13.95375489]
[1745466047989,8.34988684,148.5,148.47,13.95375489]
[1745466048301,8.34988684,148.5,148.46,13.95375489]
[1745466048601,8.34988684,148.5,148.47,13.95375489]
[1745466049398,25.18490367,148.5,148.44,26.0]
[1745466049603,25.18490367,148.5,148.46,13.95375489]
[1745466050600,25.18490367,148.5,148.44,26.0]
[1745466050896,25.18490367,148.5,148.46,13.95375489]
[1745466051496,8.34988684,148.5,148.47,13.95375489]
[1745466051697,8.34988684,148.5,148.49,13.95375489]
[1745466051903,1.6157,148.5,148.49,13.95375489]
[1745466052780,8.34970673,148.5,148.49,13.95375489]
[1745466053001,8.34970673,148.5,148.44,34.08364389]
[1745466053175,8.34970673,148.5,148.46,13.95375489]
[1745466054506,22.30346162,148.5,148.45,13.95375489]
[1745466054697,39.13847845,148.5,148.45,13.95375489]
[1745466054997,13.95375489,148.49,148.44,13.95375489]
[1745466055202,1.6574,148.44,148.43,0.063]
[1745466055392,15.61115489,148.44,148.43,0.063]
[1745466056609,22.34788353,148.44,148.43,0.063]
[1745466056983,22.34788353,148.44,148.43,1e-08]
[1745466057199,57.839354,148.44,148.4,0.063]
[1745466057390,39.95375489,148.41,148.34,14.01675489]
[1745466057695,13.95375489,148.39,148.34,14.01675489]
[1745466057888,27.97375489,148.4,148.35,13.95375489]
[1745466058088,1.5886,148.38,148.34,14.01675489]
[1745466058680,6.73990698,148.37,148.34,14.01675489]
[1745466059716,8.32811459,148.38,148.35,13.95375489]
[1745466059903,1.5886,148.38,148.35,13.95375489]
[1745466060111,1.5886,148.38,148.37,13.95375489]
[1745466061217,8.32812964,148.38,148.35,13.95375489]
[1745466062325,1.5886,148.38,148.36,13.95375489]
[1745466062505,20.7586963,148.4,148.37,13.95375489]
[1745466064921,20.7586963,148.4,148.34,6.80426841]
[1745466065091,20.7586963,148.4,148.37,13.95375489]
[1745466067803,14.02,148.4,148.38,13.95375489]
[1745466068098,13.95375489,148.39,148.34,0.063]
[1745466068289,13.95375489,148.35,148.34,0.063]
[1745466068695,13.95375489,148.36,148.34,0.063]
[1745466068998,30.8036286,148.37,148.34,0.063]
[1745466069595,13.95375489,148.35,148.34,0.063]
[1745466069801,28.67375489,148.35,148.34,0.063]
[1745466070429,14.72,148.35,148.34,0.063]
[1745466070822,21.46081563,148.35,148.34,0.063]
[1745466072920,35.41457052,148.35,148.34,0.063]
[1745466073921,21.46081563,148.35,148.34,0.063]
[1745466076712,35.41457052,148.35,148.34,0.063]
[1745466076919,37.05197052,148.35,148.34,0.063]
[1745466078109,6.3138,148.34,148.33,0.063]
[1745466078316,13.05507005,148.34,148.33,0.063]
[1745466079229,27.00882494,148.34,148.33,0.063]
[1745466081816,13.05507005,148.34,148.33,0.063]
[1745466082026,6.74127005,148.34,148.33,0.063]
[1745466082329,37.54820007,148.34,148.29,0.063]
[1745466082506,13.95375489,148.33,148.29,14.01675489]
[1745466082705,37.54820007,148.34,148.29,14.01675489]
[1745466083004,37.54820007,148.34,148.3,13.95375489]
[1745466084036,23.59444518,148.34,148.32,13.95375489]
[1745466085328,23.59444518,148.34,148.29,0.063]
[1745466085329,6.74127005,148.34,148.29,0.063]
[1745466085628,6.74127005,148.34,148.32,8.95507371]
[1745466087331,6.74127005,148.34,148.32,13.9924242]
[1745466087730,23.59444518,148.34,148.31,13.9924242]
[1745466087942,23.59444518,148.34,148.3,13.9924242]
[1745466088425,23.59444518,148.34,148.31,13.9924242]
[1745466090100,23.59444518,148.34,148.3,13.9924242]
[1745466090305,37.58686938,148.34,148.3,13.9924242]
[1745466090506,23.59444518,148.34,148.3,13.9924242]
[1745466090706,23.59444518,148.34,148.31,13.9924242]
[1745466091331,23.59444518,148.34,148.33,13.9924242]
[1745466091511,6.74127005,148.34,148.33,13.9924242]
[1745466092702,6.74127005,148.34,148.29,0.20516157]
[1745466092909,6.74127005,148.34,148.33,13.9924242]
[1745466094144,6.73990698,148.37,148.33,13.9924242]
[1745466094345,6.73990698,148.37,148.36,13.9924242]
[1745466095025,6.73990698,148.37,148.31,0.14216157]
[1745466095232,6.73990698,148.37,148.35,13.9924242]
[1745466095736,23.58967445,148.37,148.34,13.9924242]
[1745466096249,16.84976747,148.37,148.34,13.9924242]
[1745466096423,16.84976747,148.37,148.33,13.9924242]